Cogmind - Beta 15 @@@ ROGUE MODE // 2025.05.15 @ 21:23:31 Player: MoYuYu Result: Destroyed by G-34 Mercenary with Small Laser Performance ------------- Evolutions (0) 0 Regions Visited (4) 800 Robots Destroyed (3) 15 Value Destroyed (88) 88 Prototype IDs (23) 460 Alien Tech Used (0) 0 Bonus (300) 300 TOTAL SCORE: 1663 Bonus ------- Aligned with FarCom 300 Cogmind --------- Core Integrity 0/250 Matter 300/300 Energy 98/100 System Corruption 0% Temperature Cool (6) Movement Core (50) Location -9/Mines Parts ------- > --- POWER (1) -------- (None) > --- PROPULSION (2) --- (None) > --- UTILITY (2) ------ Seismic Detector > --- WEAPON (2) ------- (None) > --- INVENTORY (5) ---- Nuclear Core Rocket Launcher Field Lobotomy Kit (5) Peak State ------------ > --- POWER ------------ (None) > --- PROPULSION ------- (None) > --- UTILITY ---------- Seismic Detector > --- WEAPON ----------- (None) > --- INVENTORY -------- Nuclear Core Nuclear Core Light Fission Core Rocket Launcher Field Lobotomy Kit [Rating: 3] Favorites ----------- Power None Propulsion None Utility Seismic Detector Device Seismic Detector Weapon Medium Laser Energy Gun Medium Laser Launcher Rocket Launcher Build | -11 -10 -10 -10 -9 ------- Run | Yrd Mat Min Exi Min Slots Evolved . | . . . . . Power . | . . . . . Propulsion . | . . . . . Utility . | . . . . . Weapon . | . . . . . Parts Attached 3 | 1 . 2 . . Power . | . . . . . Engine . | . . . . . Core . | . . . . . Reactor . | . . . . . Propulsion . | . . . . . Treads . | . . . . . Leg . | . . . . . Wheel . | . . . . . Hover . | . . . . . Flight . | . . . . . Utility 1 | . . 1 . . Device 1 | . . 1 . . Storage . | . . . . . Processor . | . . . . . Hackware . | . . . . . Protection . | . . . . . Artifact . | . . . . . Weapon 2 | 1 . 1 . . Energy Gun 1 | 1 . . . . Energy Cannon . | . . . . . Ballistic Gun . | . . . . . Ballistic Cannon . | . . . . . Launcher 1 | . . 1 . . Special Weapon . | . . . . . Impact Weapon . | . . . . . Slashing Weapon . | . . . . . Piercing Weapon . | . . . . . Special Melee Weapon . | . . . . . Unidentified Prototypes . | . . . . . Parts Lost 1 | . . 1 . . Power . | . . . . . Propulsion . | . . . . . Utility . | . . . . . Weapon 1 | . . 1 . . Highest Loss Streak 1 | . . 1 . . To Critical Strikes . | . . . . . Average Backups 2 | . . . 4 3 Power 1 | . . . 2 1 Propulsion . | . . . . . Utility . | . . . . . Weapon . | . . . 1 1 Tool/Special . | . . . . . Unused Backups 4 | . . . . 4 Power 3 | . . . . 3 Propulsion . | . . . . . Utility . | . . . . . Weapon . | . . . . . Tool/Special 1 | . . . . 1 Average Slot Usage (%) 10 | . 14 3 14 14 Device 8 | . . 1 14 14 Energy Gun 1 | . 14 2 . . Peak Build Rating 3 | 1 1 2 3 3 Average Rating 1 | . 1 . 2 2 On Entrance 1 | . 1 1 1 3 Naked Turns 177 | . . 177 . . Heaviest Build 2 | 2 2 2 1 1 Greatest Support 3 | 3 3 3 3 3 Greatest Overweight (x) . | . . . . . Average Overweight (x) . | . . . . . Largest Inventory Capacity 5 | 5 5 5 5 5 Average Capacity 5 | 5 5 5 5 5 Most Carried 5 | . . 1 5 5 Average Carried 2 | . . . 4 3 Final Capacity 5 | 5 5 5 5 5 Final Carried 5 | . . 1 5 3 Class Distribution -------------------- 100% | Mutant Dominant Class ---------------- Mutant | -10/Materials Mutant | -10/Mines Mutant | -10/Exiles Mutant | -9/Mines Resources | -11 -10 -10 -10 -9 ----------- Run | Yrd Mat Min Exi Min Matter Collected 263 | 210 . 53 . . Remotely . | . . . . . Salvage Created 78 | 25 . 53 . . Parts 4 | 2 . 2 . . Haulers Intercepted . | . . . . . Recyclers Shooed . | . . . . . Parts Field Recycled . | . . . . . Retrieved Matter . | . . . . . Parts Self-Destructed . | . . . . . Prevented . | . . . . . Kills | -11 -10 -10 -10 -9 ------- Run | Yrd Mat Min Exi Min Combat Hostiles Destroyed 2 | . . 2 . . AOE 2 | . . 2 . . Classes Destroyed 2 | 1 . 1 . . Tunneler 1 | 1 . . . . Grunt 2 | . . 2 . . Best Kill Streak 2 | 1 . 2 . . Combat Bots Only 2 | . . 2 . . Max Kills in Single Turn 1 | 1 . 1 . . Gunslinging . | . . . . . Exploded 1 | . . 1 . . Melee . | . . . . . Uniques/NPCs Destroyed . | . . . . . Combat | -11 -10 -10 -10 -9 -------- Run | Yrd Mat Min Exi Min Hostile Shots Fired 57 | . . 56 . 1 Missed 23 | . . 23 . . Hits 34 | . . 33 . 1 Projectile 34 | . . 33 . 1 Damage Taken 354 | . . 342 . 12 Core 260 | . . 248 . 12 Absorbed by Shields . | . . . . . Core Remaining (%) 100 | 100 . . . . Volleys Fired 4 | 1 . 3 . . Largest 1 | 1 . 1 . . Hottest 50 | 50 . 33 . . Shots Fired 4 | 1 . 3 . . Gun 1 | 1 . . . . Cannon . | . . . . . Launcher 3 | . . 3 . . Special . | . . . . . Kinetic . | . . . . . Thermal 1 | 1 . . . . Explosive 3 | . . 3 . . Electromagnetic . | . . . . . Robot Hit Streak 1 | 1 . 1 . . Robot Miss Streak 1 | . . 1 . . Penetration Max . | . . . . . Secondary Targets . | . . . . . Shots Hit Robots 2 | 1 . 1 . . Core Hits 3 | 1 . 2 . . Critical Kills . | . . . . . Critical Parts Destroyed . | . . . . . Critical Strikes . | . . . . . Melee Attacks . | . . . . . Impact . | . . . . . Slashing . | . . . . . Piercing . | . . . . . Sneak Attacks . | . . . . . Combat Hostiles . | . . . . . Follow-up Attacks . | . . . . . Damage Inflicted 162 | 13 . 149 . . Guns 13 | 13 . . . . Cannons . | . . . . . Explosions 145 | . . 145 . . Melee . | . . . . . Ramming 4 | . . 4 . . Kinetic . | . . . . . Thermal 13 | 13 . . . . Explosive 145 | . . 145 . . Electromagnetic . | . . . . . Impact . | . . . . . Slashing . | . . . . . Piercing . | . . . . . Highest Corruption . | . . . . . Average Corruption . | . . . . . Corruption Purged . | . . . . . Corruption Blocked . | . . . . . Overload Shots . | . . . . . Overflow Damage . | . . . . . Projectiles . | . . . . . Explosions . | . . . . . Melee . | . . . . . Knockbacks . | . . . . . Impact . | . . . . . Kinetic . | . . . . . Secondary . | . . . . . Self-Inflicted Damage 2 | . . 2 . . Shots . | . . . . . Rammed 1 | . . 1 . . Targets Rammed 1 | . . 1 . . Kicked . | . . . . . Crushed . | . . . . . Highest Temperature . | . . . . . Average Temperature . | . . . . . Received Heat Transfer 99 | . . 93 . 6 Siege Activations . | . . . . . Martial Activations . | . . . . . Shielding Activations . | . . . . . Robots Disrupted . | . . . . . Combat Hostiles . | . . . . . Robots Corrupted . | . . . . . Combat Hostiles . | . . . . . Parts Fried . | . . . . . Impact Corruptions . | . . . . . Robots Melted . | . . . . . Combat Hostiles . | . . . . . Parts Melted . | . . . . . Heat Transferred 37 | 37 . . . . Parts Sabotaged . | . . . . . Parts Stolen . | . . . . . Parts Stripped . | . . . . . Power Chain Reactions . | . . . . . Alert | -11 -10 -10 -10 -9 ------- Run | Yrd Mat Min Exi Min Maximum Alert Level . | . . . . . Low Security (%) 100 | 100 100 100 . 100 Level 1 . | . . . . . Level 2 . | . . . . . Level 3 . | . . . . . Level 4 . | . . . . . Level 5 . | . . . . . High Security . | . . . . . Max Security . | . . . . . Peak Influence 134 | 5 4 134 . 15 Initial 3 | . 3 1 . . Average 29 | 2 2 71 . . Influence Increases 198 | 5 4 174 . 15 Destroy 0b10 Robot/C 40 | . . 40 . . Destroy 0b10 Robot/NC 5 | 5 . . . . Destroy Leader 10 | . . 10 . . Successful Hack 4 | . 4 . . . Destroy Structure 19 | . . 19 . . Lose Combat Pursuer 120 | . . 105 . 15 Influence Decreases 198 | . 5 104 74 15 Entered New Map 79 | . 2 3 74 . Time Decay 119 | . 3 101 . 15 Squads Dispatched . | . . . . . Investigation . | . . . . . Extermination . | . . . . . Reinforcement . | . . . . . Assault . | . . . . . Garrison . | . . . . . Intercept . | . . . . . Searches Triggered . | . . . . . Construction Impeded . | . . . . . Haulers Reinforced . | . . . . . Active Scanning Responses . | . . . . . Cargo Convoy Interrupts . | . . . . . Stealth | -11 -10 -10 -10 -9 --------- Run | Yrd Mat Min Exi Min Distress Signals . | . . . . . Communications Jammed . | . . . . . Distress Signals . | . . . . . Times Spotted 13 | . . 9 . 4 Peak Tracking Total 5 | . . 5 . 2 Tactical Retreats 4 | . . 3 . 1 Traps | -11 -10 -10 -10 -9 ------- Run | Yrd Mat Min Exi Min Traps Triggered . | . . . . . Indirectly . | . . . . . Trap Hack Attempts . | . . . . . Triggered . | . . . . . Disarmed . | . . . . . Reprogrammed . | . . . . . Reused . | . . . . . Traps Extracted . | . . . . . Installed . | . . . . . Triggered . | . . . . . Machines | -11 -10 -10 -10 -9 ---------- Run | Yrd Mat Min Exi Min Machines Disabled . | . . . . . Max in Single Turn . | . . . . . Machines Repaired . | . . . . . Machines Dismantled . | . . . . . Machines Sabotaged . | . . . . . Overloaded Fab Kills . | . . . . . Hacking | -11 -10 -10 -10 -9 --------- Run | Yrd Mat Min Exi Min Machines Accessed 4 | . 3 . 1 . Terminals 3 | . 3 . . . Fabricators . | . . . . . Repair Stations . | . . . . . Recycling Units . | . . . . . Scanalyzers . | . . . . . Garrison Access . | . . . . . Total Hacks 8 | . 7 . 1 . Successful 3 | . 2 . 1 . Failed 5 | . 5 . . . Catastrophic . | . . . . . Database Lockouts . | . . . . . Manual 8 | . 7 . 1 . Terminals 7 | . 7 . . . Fabricators . | . . . . . Repair Stations . | . . . . . Recycling Units . | . . . . . Scanalyzers . | . . . . . Garrison Access . | . . . . . Terminal Hacks 1 | . . . 1 . Proto ID Catalog 1 | . . . 1 . Fabricator Hacks . | . . . . . Repair Station Hacks . | . . . . . Recycling Unit Hacks . | . . . . . Scanalyzer . | . . . . . Garrison Access Hacks . | . . . . . Unauthorized Hacks 2 | . 2 . . . Terminals 2 | . 2 . . . Botnet 2 | . 2 . . . Fabricators . | . . . . . Repair Stations . | . . . . . Recycling Units . | . . . . . Scanalyzers . | . . . . . Garrison Access . | . . . . . Data Cores Recovered . | . . . . . Used . | . . . . . Hacking Detections 3 | . 3 . . . Full Trace Events . | . . . . . Feedback Events . | . . . . . Feedback Blocked . | . . . . . Robot Schematics Acquired . | . . . . . Robots Built . | . . . . . Authchips . | . . . . . Time . | . . . . . Total Robot Build Rating . | . . . . . Part Schematics Acquired . | . . . . . Parts Built . | . . . . . Authchips . | . . . . . Time . | . . . . . Total Part Build Rating . | . . . . . Parts Repaired . | . . . . . Time . | . . . . . Parts Recycled . | . . . . . Recycled Matter . | . . . . . Retrieved Matter . | . . . . . Retrieved Components . | . . . . . Parts Scanalyzed . | . . . . . Part Schematics Acquired . | . . . . . Parts Damaged . | . . . . . Bothacking | -11 -10 -10 -10 -9 ------------ Run | Yrd Mat Min Exi Min Used RIF Installer . | . . . . . Robots Hacked . | . . . . . Non-combat . | . . . . . Combat . | . . . . . Robot Hacks Applied . | . . . . . Relay Couplers Released . | . . . . . Fabnet Peak Effective % . | . . . . . Robots Rewired . | . . . . . Allies Hacked . | . . . . . Hacks Repelled . | . . . . . Allies | -11 -10 -10 -10 -9 -------- Run | Yrd Mat Min Exi Min Total Allies 2 | . . 2 . . Largest Group 2 | . . 2 . . Highest-Rated Group 46 | . . 46 . . Highest-Rated Ally 31 | . . 31 . . Total Orders . | . . . . . Ally Attacks . | . . . . . Total Damage . | . . . . . Kills . | . . . . . Allies Corrupted . | . . . . . Allies Melted . | . . . . . Intel | -11 -10 -10 -10 -9 ------- Run | Yrd Mat Min Exi Min Active Infowar (turns) 451 | . . 22 115 314 Seismic 451 | . . 22 115 314 Robot Analysis Total . | . . . . . Derelict Logs Recovered 3 | . . 1 . 2 Drone Launches . | . . . . . Drone Recoveries . | . . . . . Exploration | -11 -10 -10 -10 -9 ------------- Run | Yrd Mat Min Exi Min Turns Passed 724 | 16 34 245 115 314 Spaces Moved 1111 | 25 68 430 222 366 Core 1111 | 25 68 430 222 366 Treads . | . . . . . Legs . | . . . . . Wheels . | . . . . . Hover . | . . . . . Flight . | . . . . . Fastest Speed 50 | 50 50 50 50 50 Average Speed 50 | 50 50 50 50 50 Slowest Speed 50 | 50 50 50 50 50 Overloaded Moves . | . . . . . Propulsion Burnouts . | . . . . . Robots Hopped . | . . . . . Potential Cave-ins . | . . . . . Cave-ins Triggered . | . . . . . Exploration Rate (%) 40 | 3 17 75 62 43 Regions Visited 4 Branch Regions 3 Pre-discovered Areas 2 | . . 1 . 1 Known Exits Taken . | . . . . . Unknown Exits Taken 4 | 1 1 1 1 . Scrap Searched 1 | . . 1 . . Spaces Dug . | . . . . . Terrain Destroyed 37 | . . 37 . . Melee . | . . . . . Projectile . | . . . . . AOE 37 | . . 37 . . Terrain Rammed . | . . . . . Walls Destroyed . | . . . . . Machines Disabled . | . . . . . Actions | -11 -10 -10 -10 -9 --------- Run | Yrd Mat Min Exi Min Total 1272 | 26 67 456 225 498 Wait 149 | . . 19 . 130 Move 1107 | 24 67 429 221 366 Hop . | . . . . . Pick Up 5 | . . 1 4 . Fast Attach 2 | 1 . 1 . . Attach 1 | . . 1 . . Detach 1 | . . 1 . . Swap . | . . . . . Drop 2 | . . . . 2 Fire 4 | 1 . 3 . . Melee . | . . . . . Ram 1 | . . 1 . . Kick . | . . . . . Crush . | . . . . . Escape Stasis . | . . . . . Rewire . | . . . . . Trap . | . . . . . Miscellaneous . | . . . . . Route ------- -11/Scrapyard -10/Materials -10/Mines (discovered 3 exits: [*Mat x2] / *Exi) -10/Exiles -9/Mines (discovered 1 exit: [*Mat]) History --------- Turn | Location | Event 7 | -11/Scrapyard | Discovered new exit (range 15) 17 | -11/Scrapyard | Entered Materials 47 | -10/Materials | Discovered new exit (range 8) 51 | -10/Materials | Entered Mines 64 | -10/Mines | Discovered new exit (range 7) 88 | -10/Mines | Learned location of Storage (-8) 102 | -10/Mines | Core integrity fell below 50% 158 | -10/Mines | Core integrity fell below 20% 168 | -10/Mines | Received a Rocket Launcher from a helpful Derelict 196 | -10/Mines | Discovered new exit (range 5) 294 | -10/Mines | Deemed a non-threat by the Exiles lab entrance 294 | -10/Mines | Discovered new exit (range 5) 296 | -10/Mines | Entered Exiles 314 | -10/Exiles | Build established: Mutant 314 | -10/Exiles | Met 8R-AWN 321 | -10/Exiles | Met EX-HEX 334 | -10/Exiles | Met EX-BIN 340 | -10/Exiles | Aligned with FarCom system 341 | -10/Exiles | Given EX-Vault access code 352 | -10/Exiles | Opened EX-Vault 355 | -10/Exiles | Found Field Lobotomy Kit 367 | -10/Exiles | Warned to stay clear of 0b10 Research branches 387 | -10/Exiles | Met EX-DEC 406 | -10/Exiles | Discovered new exit (range 10) 411 | -10/Exiles | Left Exiles lab with Field Lobotomy Kit 411 | -10/Exiles | Entered Mines 414 | -9/Mines | Assembled infested the area 540 | -9/Mines | Learned location of Zion (-6) 725 | -9/Mines | Discovered new exit (range 5) 725 | -9/Mines | Destroyed by G-34 Mercenary with Small Laser Last Messages --------------- chain! 00389_ EX-DEC: "Oops, I hope HEX didn't hear that..." 00406_ EXIT=FOUND LOCATION=UNKNOWN GOAL=ESCAPE 00411_ Receiving FarCom transmissions... 00414_ ALERT: Infestation in the mines, dispatching Demolisher response squad. 00431_ Acquired derelict log, extracted data. Data stored: Storage entrances (x1). 00485_ K-01 Serf collects debris. 00540_ Acquired derelict log, extracted data. World map updated: -6/Zion. 00544_ Dropped Rigged Lgt. Fission Core. 00551_ Dropped Rigged Nuclear Core. 00594_ K-01 Serf collects debris. 00716_ U-05 Engineer lays Concrete. 00725_ EXIT=FOUND 00725_ U-05 Engineer lays Concrete. Map ----- +----------------------------------------------------+ | ?????????########????????????????????????????????? | | ????????## ##?#####?????????????????????????? | | ######### ### ##????????????????????????? | | ##???????????????????????? | | ########## ##??????????????????????? | | #????????# " ######?????????????????? | | ########## ### #############?????? | | #?## %% "#?????? | | ## ##########??# % "#?????? | | ?# #??????????## ####"" "#?????? | | ?# #??????????# # #??##" "#?????? | | ?# #??????????## u ##???#" "####### | | ?# #???????????# % ###????## ### | | ?# #???????????# ##???????# | | ?# #???????????# # # ###????????# | | ?# #???????????#### ## ##??????????##### | | ?# #??????????????## # ##???????????????# | | ?# #???????????????### #????????????????# | | ## #?????????????????# ##???????????????## | | #?????????????????# %#????????????????### | | ####?????????????????## #??????????????????## | | #?????????????????????## #??????????????????## | | ???????????????????????## t#?????????????????## | | ????????????????????????# #????#####???????## | | ????????????????????????# # b g #???????# | | ????????????????????????#@ g #???????# | | ????????????????????????# ## < #???????## | | ????????????????????????# #? #????????## | | ????????????????????????# #??#####??#?????????## | | ???????????????????????? ????????????????????### | | ????????????????????????###??????????????????????? | | ?????????????????????????????????????????????????? | | ??????????????????????????????????Y????Y?????????? | | ?????????????????????????????????????????????????? | | ?????????????????????????????????????????????????? | | ?????????????????????????????????????????????????? | | ?????????????????????????????????????????????????? | | ???????????????d?????????????????????????????????? | | ?????????????????????????????????????????????????? | | ?????????????????????????????????????????????????? | | ?????????????????????????????????????????????????? | | ?????????????????????????????????????????????????? | | ?????????????????????????????????????????????????? | | ?????????????????????????????????????????????????? | | ?????????????????????????????????????????????????? | | ?????????????????????????????????????????????????? | | ?????????????????????????????????????????????????? | | ?????????????????????????????????????????????????? | | ?????????????????????????????????????????????????? | | ?????????????????????????????????????????????????? | +----------------------------------------------------+ Best States ------------- Heat Dissipation 25 Energy Generation 5 Energy Capacity 100 Matter Stores 300 Matter Capacity 300 Sight Range 16 Terrain Scan Density 10 Evasion (%) 50 Item Schematics ----------------- None Robot Schematics ------------------ None Fabricated ------------ Nothing Repaired ---------- Nothing Alien Tech Used ----------------- None Achievements -------------- None Challenges ------------ None Game ------ Seed MissileSpacefoldLauncher Manual? 0 Play Time 00:11:58 Cumulative 157.6 hours Start 2025.05.15 @ 21:14:21 End 2025.05.15 @ 21:23:31 Sessions 1 Manual Loads 0 Difficulty Rogue Special Mode None Game No. 83 Rogue 73 Adventurer 5 Explorer 5 Win Type - Total 9 Types 7/0/1/1/0/0/0/0/0/0 Lore% 43 Gallery% 59 Achievement% 54 Wizard Run 0 Options --------- Layout 2 ASCII 0 Keyboard 0 Movement Mouse Keybinds 1 Fullscreen 1 Font 20/Terminus Map View 50x44 Zoom Use 0% Tactical HUD 1 Map Filters NONE Filters SATURATION(60) Steam 1 RUN: 2454579a-fe2e-4853-9e0d-96dd72cfb8ad